fUSD/lending_fUSD_20240614
["ID","MTS","AMOUNT","RATE_DAILY","PERIOD"]
[329408275,1718323354670,1791.42281,0.00014,2]
[329408276,1718323673620,1492.85235,0.00014,2]
[329408284,1718323834965,-1526.1103,0.00014899,2]
[329408285,1718323834993,-150.0,0.00014986,2]
[329408286,1718323835012,-269.27586488,0.00014999,2]
[329408287,1718323835077,-2046.44367817,0.00014999,2]
[329408288,1718323835173,-150.0,0.00014999,2]
[329408289,1718323835260,-8428.03326567,0.00015,2]
[329408290,1718323835296,-284.88943915,0.00015,2]
[329408291,1718323835333,-388.88750137,0.00015,2]
[329408292,1718323835416,-510.3000105,0.00015,2]
[329408293,1718323835456,-726.48604474,0.00015,2]
[329408294,1718323835821,-1000.0,0.00015,2]
[329408295,1718323835838,-1500.0,0.00015,2]
[329408298,1718323840072,-10859.41738551,0.00015,2]
[329408299,1718323840089,-284.51111494,0.00015,2]
[329408300,1718323840125,-10391.0,0.00015,2]
[329408301,1718323840149,-730.60641443,0.00015,2]
[329408302,1718323840173,-795.2682055,0.00015,2]
[329408303,1718323840187,-1007.38297438,0.00015,2]
[329408304,1718323840214,-633.84,0.00015,2]
[329408305,1718323840260,-10816.66281497,0.00015,2]
[329408306,1718323840274,-1575.69909023,0.00015,2]
[329408309,1718323841080,-482.691,0.00015,2]
[329408310,1718323841121,-965.1429323,0.00015,2]
[329408315,1718323841820,-8343.62501842,0.00015,2]
[329408317,1718323841865,-1492.85235,0.00019,2]
[329408319,1718323841897,-226.76270483,0.000201,2]
[329408320,1718323841908,-1000.0,0.00020123,2]
[329408322,1718323841932,-1101.71,0.00020536,2]
[329408324,1718323841952,-743.61,0.00020581,2]
[329408325,1718323841972,-358.3,0.0002068,2]
[329408327,1718323842018,-556.23,0.00020684,2]
[329408329,1718323842030,-1207.39,0.00020718,2]
[329408331,1718323842041,-2516.74,0.00020718,2]
[329408333,1718323842054,-169.66,0.00020734,2]
[329408334,1718323842070,-4513.93634161,0.0002096,2]
[329408335,1718323842121,-4572.78453988,0.0002096,2]
[329408336,1718323842138,-6044.33911851,0.0002096,2]
[329408337,1718323842157,-250.0,0.00021008,2]
[329408338,1718323842175,-250.0,0.00021017,2]
[329408339,1718323842199,-237.8,0.00021029,2]
[329408340,1718323842216,-167.68,0.0002113,2]
[329408341,1718323842240,-499.95,0.00021918,2]
[329408342,1718323842264,-250.0,0.00021918,2]
[329408343,1718323842292,-1000.0,0.00022638,2]
[329408344,1718323842316,-155.0,0.00023,2]
[329408345,1718323842336,-743.61,0.00023153,2]
[329408346,1718323842360,-237.8,0.00023769,2]
[329408347,1718323842381,-1000.0,0.00023851,2]
[329408348,1718323842412,-1100.0,0.000239,8]
[329408349,1718323842470,-1492.85235,0.00024,2]
[329408350,1718323842482,-5130.24467058,0.00024009,2]
[329408351,1718323842502,-7500.0,0.00024009,2]
[329408352,1718323842513,-37859.0571052,0.000241,3]
[329408353,1718323842525,-863.57303464,0.00024108,2]
[329408354,1718323842540,-500.0,0.00024109,2]
[329408356,1718323842583,-449.01915721,0.00024109,2]
[329408359,1718323842620,-500.0,0.00024109,2]
[329408360,1718323842632,-500.0,0.00024109,2]
[329408363,1718323842670,-500.0,0.00024109,2]
[329408365,1718323842716,-500.0,0.00024109,2]
[329408367,1718323842743,-500.0,0.00024109,2]
[329408368,1718323842756,-500.0,0.00024109,2]
[329408369,1718323842768,-155.21,0.00024109,2]
[329408370,1718323842792,-500.0,0.00024109,2]
[329408371,1718323842820,-500.0,0.00024109,2]
[329408372,1718323842857,-500.0,0.00024109,2]
[329408373,1718323842869,-500.0,0.00024109,2]
[329408374,1718323842883,-500.0,0.00024109,2]
[329408375,1718323842893,-500.0,0.00024109,2]
[329408376,1718323842905,-500.0,0.00024109,2]
[329408377,1718323842916,-500.0,0.00024109,2]
[329408378,1718323842931,-500.0,0.00024109,2]
[329408379,1718323842944,-500.0,0.00024109,2]
[329408380,1718323842955,-434.71921313,0.00024109,2]
[329408381,1718323842966,-500.0,0.00024109,2]
[329408382,1718323842978,-500.0,0.00024109,2]
[329408383,1718323842999,-500.0,0.00024109,2]
[329408384,1718323843024,-500.0,0.00024109,2]
[329408385,1718323843071,-500.0,0.00024109,2]
[329408386,1718323843090,-500.0,0.00024109,2]
[329408387,1718323843133,-500.0,0.00024109,2]
[329408388,1718323843148,-500.0,0.00024109,2]
[329408389,1718323843159,-500.0,0.00024109,2]
[329408390,1718323843179,-500.0,0.00024109,2]
[329408391,1718323843191,-500.0,0.00024109,2]
[329408392,1718323843228,-628.69675296,0.00024109,2]
[329408393,1718323843270,-250.0,0.00024109,2]
[329408394,1718323843285,-500.0,0.00024109,2]
[329408395,1718323843310,-500.0,0.00024109,2]
[329408396,1718323843338,-500.0,0.00024109,2]
[329408397,1718323843359,-500.0,0.00024109,2]
[329408398,1718323843412,-193.03250596,0.00024109,2]
[329408399,1718323843427,-359.24167749,0.00024109,2]
[329408400,1718323843656,-500.0,0.00024109,2]
[329408401,1718323843683,-457.540768,0.00024109,2]
[329408411,1718323845478,-42.459232,0.00024109,2]
[329408412,1718323845564,-500.0,0.00024109,2]
[329408413,1718323845613,-500.0,0.00024109,2]
[329408414,1718323845626,-647.32251837,0.00024109,2]
[329408415,1718323845646,-500.0,0.00024109,2]
[329408416,1718323845687,-500.0,0.00024109,2]
[329408417,1718323845713,-500.0,0.00024109,2]
[329408418,1718323845753,-500.0,0.00024109,2]
[329408419,1718323845765,-500.0,0.00024109,2]
[329408420,1718323845796,-500.0,0.00024109,2]
[329408421,1718323845807,-500.0,0.00024109,2]
[329408422,1718323845819,-500.0,0.00024109,2]
[329408423,1718323845859,-500.0,0.00024109,2]
[329408424,1718323845894,-500.0,0.00024109,2]
[329408425,1718323845919,-509.13716905,0.00024109,2]
[329408426,1718323845948,-500.0,0.00024109,2]
[329408427,1718323845964,-500.0,0.00024109,2]
[329408429,1718323845993,-500.0,0.00024109,2]
[329408431,1718323846013,-500.0,0.00024109,2]
[329408432,1718323846029,-500.0,0.00024109,2]
[329408433,1718323846058,-500.0,0.00024109,2]
[329408434,1718323846094,-500.0,0.00024109,2]
[329408435,1718323846114,-218.67,0.00024109,2]
[329408436,1718323846141,-452.32676498,0.00024109,2]
[329408437,1718323846186,-389.44878641,0.00024109,2]
[329408438,1718323846198,-352.79847601,0.00024109,2]
[329408439,1718323846210,-500.0,0.00024109,2]
[329408440,1718323846226,-500.0,0.00024109,2]
[329408441,1718323846250,-307.6880727,0.00024109,2]
[329408442,1718323846293,-500.0,0.00024109,2]
[329408443,1718323846311,-500.0,0.00024109,2]
[329408444,1718323846323,-500.0,0.00024109,2]
[329408445,1718323846334,-500.0,0.00024109,2]
[329408446,1718323846347,-500.0,0.00024109,2]
[329408447,1718323846392,-500.0,0.00024109,2]
[329408448,1718323846409,-500.0,0.00024109,2]
[329408449,1718323846440,-500.0,0.00024109,2]
[329408450,1718323846474,-500.0,0.00024109,2]
[329408451,1718323846492,-500.0,0.00024109,2]
[329408452,1718323846552,-500.0,0.00024109,2]
[329408453,1718323846571,-500.0,0.00024109,2]
[329408454,1718323846605,-500.0,0.00024109,2]
[329408455,1718323846625,-527.54966981,0.00024109,2]
[329408456,1718323846654,-500.0,0.00024109,2]
[329408457,1718323846705,-500.0,0.00024109,2]
[329408458,1718323846723,-500.0,0.00024109,2]
[329408459,1718323846734,-500.0,0.00024109,2]
[329408460,1718323846751,-567.46,0.00024109,2]
[329408461,1718323846763,-500.0,0.00024109,2]
[329408462,1718323846774,-500.0,0.00024109,2]
[329408463,1718323846785,-599.68,0.00024109,2]
[329408464,1718323846797,-500.0,0.00024109,2]
[329408465,1718323846807,-500.0,0.00024109,2]
[329408466,1718323846818,-276.76819121,0.00024109,2]
[329408467,1718323846831,-641.58967931,0.00024109,2]
[329408468,1718323846842,-801.39,0.00024109,2]
[329408469,1718323846855,-500.0,0.00024109,2]
[329408470,1718323846888,-500.0,0.00024109,2]
[329408471,1718323846945,-500.0,0.00024109,2]
[329408472,1718323846990,-500.0,0.00024109,2]
[329408473,1718323847049,-616.38979484,0.00024109,2]
[329408474,1718323847096,-256.86028981,0.00024109,2]
[329408475,1718323847133,-500.0,0.00024109,2]
[329408476,1718323847189,-500.0,0.00024109,2]
[329408477,1718323847210,-500.0,0.00024109,2]
[329408478,1718323847239,-500.0,0.00024109,2]
[329408479,1718323847263,-500.0,0.00024109,2]
[329408480,1718323847292,-500.0,0.00024109,2]
[329408482,1718323847309,-500.0,0.00024109,2]
[329408483,1718323847320,-500.0,0.00024109,2]
[329408485,1718323847351,-500.0,0.00024109,2]
[329408488,1718323847374,-500.0,0.00024109,2]
[329408489,1718323847400,-500.0,0.00024109,2]
[329408490,1718323847445,-607.52432074,0.00024109,2]
[329408491,1718323847477,-500.0,0.00024109,2]
[329408492,1718323847518,-500.0,0.00024109,2]
[329408493,1718323847581,-500.0,0.00024109,2]
[329408494,1718323847593,-500.0,0.00024109,2]
[329408495,1718323847616,-500.0,0.00024109,2]
[329408496,1718323847651,-500.0,0.00024109,2]
[329408497,1718323847721,-500.0,0.00024109,2]
[329408498,1718323847758,-500.0,0.00024109,2]
[329408499,1718323847780,-228.96203226,0.00024109,2]
[329408500,1718323847826,-500.0,0.00024109,2]
[329408501,1718323847879,-500.0,0.00024109,2]
[329408502,1718323847907,-500.0,0.00024109,2]
[329408503,1718323847964,-500.0,0.00024109,2]
[329408504,1718323847983,-500.0,0.00024109,2]
[329408505,1718323848008,-500.0,0.00024109,2]
[329408506,1718323848021,-500.0,0.00024109,2]
[329408507,1718323848036,-760.12,0.00024109,2]
[329408508,1718323848071,-500.0,0.00024109,2]
[329408509,1718323848136,-500.0,0.00024109,2]
[329408510,1718323848166,-500.0,0.00024109,2]
[329408511,1718323848196,-500.0,0.00024109,2]
[329408512,1718323848224,-500.0,0.00024109,2]
[329408513,1718323848256,-500.0,0.00024109,2]
[329408514,1718323848268,-500.0,0.00024109,2]
[329408515,1718323848284,-500.0,0.00024109,2]
[329408516,1718323848301,-500.0,0.00024109,2]
[329408517,1718323848348,-500.0,0.00024109,2]
[329408518,1718323848359,-155.55,0.00024109,2]
[329408519,1718323848378,-500.0,0.00024109,2]
[329408520,1718323848393,-500.0,0.00024109,2]
[329408521,1718323848420,-500.0,0.00024109,2]
[329408522,1718323848451,-500.0,0.00024109,2]
[329408523,1718323848478,-500.0,0.00024109,2]
[329408524,1718323848494,-500.0,0.00024109,2]
[329408525,1718323848510,-500.0,0.00024109,2]
[329408526,1718323848533,-507.07229136,0.00024109,2]
[329408527,1718323848549,-500.0,0.00024109,2]
[329408528,1718323848565,-500.0,0.00024109,2]
[329408529,1718323848580,-500.0,0.00024109,2]
[329408530,1718323848594,-500.0,0.00024109,2]
[329408531,1718323848611,-500.0,0.00024109,2]
[329408532,1718323848630,-500.0,0.00024109,2]
[329408533,1718323848656,-500.0,0.00024109,2]
[329408534,1718323848684,-506.13837568,0.00024109,2]
[329408535,1718323848707,-500.0,0.00024109,2]
[329408536,1718323848748,-380.88545217,0.00024109,2]
[329408537,1718323848768,-500.0,0.00024109,2]
[329408538,1718323848780,-500.0,0.00024109,2]
[329408539,1718323848792,-500.0,0.00024109,2]
[329408540,1718323848812,-500.0,0.00024109,2]
[329408541,1718323848824,-500.0,0.00024109,2]
[329408542,1718323848835,-500.0,0.00024109,2]
[329408543,1718323848848,-618.61,0.00024109,2]
[329408544,1718323848860,-68.80537916,0.00024109,2]
[329408550,1718323849442,-87.29375044,0.00024109,2]
[329408551,1718323849462,-500.0,0.00024109,2]
[329408552,1718323849486,-500.0,0.00024109,2]
[329408553,1718323849532,-500.0,0.00024109,2]
[329408554,1718323849548,-500.0,0.00024109,2]
[329408555,1718323849572,-514.16013392,0.00024109,2]
[329408556,1718323849604,-135.89986608,0.00024109,2]
[329408557,1718323849615,-500.0,0.00024109,2]
[329408558,1718323849625,-500.0,0.00024109,2]
[329408559,1718323849664,-500.0,0.00024109,2]
[329408560,1718323849679,-500.0,0.00024109,2]
[329408561,1718323849716,-500.0,0.00024109,2]
[329408562,1718323849736,-500.0,0.00024109,2]
[329408563,1718323849747,-500.0,0.00024109,2]
[329408564,1718323849789,-500.0,0.00024109,2]
[329408565,1718323849801,-188.56,0.00024109,2]
[329408566,1718323849813,-500.0,0.00024109,2]
[329408567,1718323849831,-500.0,0.00024109,2]
[329408568,1718323849909,-500.0,0.00024109,2]
[329408569,1718323849947,-500.0,0.00024109,2]
[329408570,1718323849958,-536.23251264,0.00024109,2]
[329408571,1718323849993,-93.34115905,0.00024109,2]
[329408572,1718323850008,-406.65884095,0.00024109,2]
[329408573,1718323850020,-62.02108857,0.00024109,2]
[329408574,1718323850037,-566.12891143,0.00024109,2]
[329408575,1718323850048,-492.39165298,0.00024109,2]
[329408576,1718323850139,-7.60834702,0.00024109,2]
[329408577,1718323850152,-500.0,0.00024109,2]
[329408578,1718323850162,-500.0,0.00024109,2]
[329408579,1718323850175,-500.0,0.00024109,2]
[329408580,1718323850186,-500.0,0.00024109,2]
[329408581,1718323850201,-500.0,0.00024109,2]
[329408582,1718323850224,-539.68,0.00024109,2]
[329408583,1718323850236,-500.0,0.00024109,2]
[329408584,1718323850246,-500.0,0.00024109,2]
[329408585,1718323850259,-500.0,0.00024109,2]
[329408586,1718323850272,-500.0,0.00024109,2]
[329408587,1718323850284,-529.5,0.00024109,2]
[329408588,1718323850315,-500.0,0.00024109,2]
[329408589,1718323850327,-500.0,0.00024109,2]
[329408590,1718323850341,-837.58,0.00024109,2]
[329408591,1718323850354,-172.1,0.00024109,2]
[329408592,1718323850373,-500.0,0.00024109,2]
[329408593,1718323850385,-500.0,0.00024109,2]
[329408594,1718323850396,-500.0,0.00024109,2]
[329408595,1718323850407,-500.0,0.00024109,2]
[329408596,1718323850424,-500.0,0.00024109,2]
[329408597,1718323850437,-500.0,0.00024109,2]
[329408598,1718323850461,-500.0,0.00024109,2]
[329408599,1718323850493,-500.0,0.00024109,2]
[329408600,1718323850532,-500.0,0.00024109,2]
[329408601,1718323850542,-500.0,0.00024109,2]
[329408602,1718323850554,-500.0,0.00024109,2]
[329408603,1718323850591,-500.0,0.00024109,2]
[329408604,1718323850614,-422.2267224,0.00024109,2]
[329408605,1718323850626,-555.27,0.00024109,2]
[329408606,1718323850650,-500.0,0.00024109,2]
[329408607,1718323850666,-500.0,0.00024109,2]
[329408608,1718323850693,-500.0,0.00024109,2]
[329408609,1718323850744,-500.0,0.00024109,2]
[329408610,1718323850777,-500.0,0.00024109,2]
[329408611,1718323850801,-500.0,0.00024109,2]
[329408612,1718323850814,-500.0,0.00024109,2]
[329408613,1718323850824,-500.0,0.00024109,2]
[329408614,1718323850837,-500.0,0.00024109,2]
[329408615,1718323850872,-193.29116544,0.00024109,2]
[329408616,1718323850885,-500.0,0.00024109,2]
[329408617,1718323850898,-500.0,0.00024109,2]
[329408618,1718323850927,-992.55,0.00024109,2]
[329408619,1718323850943,-500.0,0.00024109,2]
[329408620,1718323850954,-500.0,0.00024109,2]
[329408621,1718323850966,-500.0,0.00024109,2]
[329408622,1718323851000,-500.0,0.00024109,2]
[329408623,1718323851028,-500.0,0.00024109,2]
[329408624,1718323851039,-500.0,0.00024109,2]
[329408625,1718323851079,-500.0,0.00024109,2]
[329408626,1718323851097,-500.0,0.00024109,2]
[329408627,1718323851108,-500.0,0.00024109,2]
[329408628,1718323851120,-500.0,0.00024109,2]
[329408629,1718323851148,-500.0,0.00024109,2]
[329408630,1718323851160,-500.0,0.00024109,2]
[329408631,1718323851172,-500.0,0.00024109,2]
[329408632,1718323851187,-500.0,0.00024109,2]
[329408633,1718323851199,-500.0,0.00024109,2]
[329408634,1718323851215,-500.0,0.00024109,2]
[329408635,1718323851226,-723.25,0.00024109,2]
[329408636,1718323851237,-500.0,0.00024109,2]
[329408637,1718323851248,-507.10113104,0.00024109,2]
[329408638,1718323851268,-500.0,0.00024109,2]
[329408639,1718323851281,-500.0,0.00024109,2]
[329408640,1718323851312,-4050.0,0.00024109,2]
[329408641,1718323851325,-500.0,0.00024109,2]
[329408642,1718323851339,-500.0,0.00024109,2]
[329408643,1718323851396,-500.0,0.00024109,2]
[329408644,1718323851406,-500.0,0.00024109,2]
[329408645,1718323851440,-500.0,0.00024109,2]
[329408646,1718323851457,-527.46,0.00024109,2]
[329408647,1718323851484,-500.0,0.00024109,2]
[329408648,1718323851549,-500.0,0.00024109,2]
[329408649,1718323851562,-500.0,0.00024109,2]
[329408650,1718323851577,-1586.6,0.00024109,2]
[329408651,1718323851603,-500.0,0.00024109,2]
[329408652,1718323851616,-1448.61,0.00024109,2]
[329408653,1718323851647,-955.11,0.00024109,2]
[329408654,1718323851658,-613.74,0.00024109,2]
[329408655,1718323851668,-500.0,0.00024109,2]
[329408656,1718323851683,-1190.36,0.00024109,2]
[329408657,1718323851706,-500.0,0.00024109,2]
[329408658,1718323851736,-500.0,0.00024109,2]
[329408659,1718323851753,-500.0,0.00024109,2]
[329408660,1718323851780,-500.0,0.00024109,2]
[329408661,1718323851812,-500.0,0.00024109,2]
[329408662,1718323851823,-500.0,0.00024109,2]
[329408663,1718323851836,-12102.13,0.00024109,2]
[329408664,1718323851846,-500.0,0.00024109,2]
[329408665,1718323851862,-176.12432544,0.00024109,2]
[329408666,1718323851892,-323.87567456,0.00024109,2]
[329408667,1718323851906,-357.45695176,0.00024109,2]
[329408668,1718323851929,-142.54304824,0.00024109,2]
[329408669,1718323851952,-500.0,0.00024109,2]
[329408673,1718323852171,-70.60436926,0.00024109,2]
[329408674,1718323852187,-429.39563074,0.00024109,2]
[329408675,1718323852206,-1851.81,0.00024109,2]
[329408676,1718323852217,-500.0,0.00024109,2]
[329408677,1718323852247,-323.42,0.00024109,2]
[329408678,1718323852263,-1040.61,0.00024109,2]
[329408679,1718323852274,-500.0,0.00024109,2]
[329408680,1718323852288,-500.0,0.00024109,2]
[329408681,1718323852305,-500.0,0.00024109,2]
[329408682,1718323852318,-500.0,0.00024109,2]
[329408683,1718323852355,-500.0,0.00024109,2]
[329408684,1718323852366,-522.26,0.00024109,2]
[329408685,1718323852386,-500.0,0.00024109,2]
[329408686,1718323852447,-565.46,0.00024109,2]
[329408687,1718323852468,-500.0,0.00024109,2]
[329408688,1718323852485,-500.0,0.00024109,2]
[329408689,1718323852528,-500.0,0.00024109,2]
[329408690,1718323852560,-500.0,0.00024109,2]
[329408691,1718323852572,-636.98566192,0.00024109,2]
[329408692,1718323852583,-872.43,0.00024109,2]
[329408693,1718323852593,-500.0,0.00024109,2]
[329408694,1718323852606,-685.59,0.00024109,2]
[329408695,1718323852619,-2124.54,0.00024109,2]
[329408696,1718323852635,-857.7,0.00024109,2]
[329408697,1718323852672,-500.0,0.00024109,2]
[329408698,1718323852698,-518.88,0.00024109,2]
[329408699,1718323852718,-7138.24607006,0.00024109,2]
[329408700,1718323852737,-93.93392994,0.00024109,2]
[329408701,1718323852755,-500.0,0.00024109,2]
[329408702,1718323852766,-1577.15,0.00024109,2]
[329408703,1718323852781,-957.16,0.00024109,2]
[329408704,1718323852792,-1220.77107914,0.00024109,2]
[329408705,1718323852881,-500.0,0.00024109,2]
[329408706,1718323852893,-2308.39892086,0.00024109,2]
[329408707,1718323852908,-500.0,0.00024109,2]
[329408708,1718323852924,-500.0,0.00024109,2]
[329408709,1718323852936,-846.6974904,0.00024109,2]
[329408710,1718323854708,-2516.4825096,0.00024109,2]
[329408711,1718323854720,-848.72160328,0.00024109,2]
[329408712,1718323854735,-485.03839672,0.00024109,2]
[329408713,1718323854748,-500.0,0.00024109,2]
[329408714,1718323854760,-500.0,0.00024109,2]
[329408715,1718323854777,-850.33,0.00024109,2]
[329408716,1718323854793,-724.44,0.00024109,2]
[329408717,1718323854827,-583.04180374,0.00024109,2]
[329408718,1718323855310,-458.03819626,0.00024109,2]
[329408719,1718323855326,-304.54762589,0.00024109,2]
[329408720,1718323855344,-25.30237411,0.00024109,2]
[329408721,1718323855362,-500.0,0.00024109,2]
[329408722,1718323855375,-847.86,0.00024109,2]
[329408723,1718323855389,-500.0,0.00024109,2]
[329408724,1718323855401,-107.77841656,0.00024109,2]
[329408725,1718323855430,-392.22158344,0.00024109,2]
[329408726,1718323855454,-500.0,0.00024109,2]
[329408727,1718323855471,-737.58,0.00024109,2]
[329408728,1718323855491,-973.48,0.00024109,2]
[329408729,1718323855527,-862.43,0.00024109,2]
[329408730,1718323855540,-500.0,0.00024109,2]
[329408731,1718323855560,-500.0,0.00024109,2]
[329408732,1718323855604,-500.0,0.00024109,2]
[329408733,1718323855636,-500.0,0.00024109,2]
[329408734,1718323855688,-500.0,0.00024109,2]
[329408735,1718323855702,-5319.18,0.00024109,2]
[329408736,1718323855719,-500.0,0.00024109,2]
[329408737,1718323855730,-500.0,0.00024109,2]
[329408738,1718323855746,-645.61,0.00024109,2]
[329408739,1718323855775,-644.27,0.00024109,2]
[329408740,1718323855796,-931.17,0.00024109,2]
[329408741,1718323855808,-500.0,0.00024109,2]
[329408742,1718323855826,-1787.78,0.00024109,2]
[329408743,1718323855854,-500.0,0.00024109,2]
[329408744,1718323855875,-500.0,0.00024109,2]
[329408745,1718323855920,-1070.09,0.00024109,2]
[329408746,1718323855961,-500.0,0.00024109,2]
[329408747,1718323855984,-500.0,0.00024109,2]
[329408748,1718323856012,-1352.66,0.00024109,2]
[329408749,1718323856024,-500.0,0.00024109,2]
[329408750,1718323856048,-500.0,0.00024109,2]
[329408751,1718323856059,-2181.14,0.00024109,2]
[329408752,1718323856080,-500.0,0.00024109,2]
[329408753,1718323856096,-500.0,0.00024109,2]
[329408754,1718323856122,-500.0,0.00024109,2]
[329408755,1718323856134,-5383.34,0.00024109,2]
[329408756,1718323856146,-500.0,0.00024109,2]
[329408757,1718323856186,-500.0,0.00024109,2]
[329408758,1718323856216,-866.05,0.00024109,2]
[329408759,1718323856253,-12683.21,0.00024109,2]
[329408760,1718323856280,-606.15,0.00024109,2]
[329408761,1718323856309,-500.0,0.00024109,2]
[329408762,1718323856322,-590.9,0.00024109,2]
[329408763,1718323856348,-640.06053711,0.00024109,2]
[329408764,1718323856359,-500.0,0.00024109,2]
[329408765,1718323856370,-500.0,0.00024109,2]
[329408766,1718323856392,-703.7,0.00024109,2]
[329408767,1718323856404,-500.0,0.00024109,2]
[329408768,1718323856416,-694.14,0.00024109,2]
[329408769,1718323856428,-1697.84,0.00024109,2]
[329408770,1718323856445,-500.0,0.00024109,2]
[329408771,1718323856472,-1249.92,0.00024109,2]
[329408772,1718323856506,-500.0,0.00024109,2]
[329408773,1718323856517,-1189.74,0.00024109,2]
[329408774,1718323856531,-4158.83,0.00024109,2]
[329408775,1718323856575,-1102.37,0.00024109,2]
[329408776,1718323856590,-500.0,0.00024109,2]
[329408777,1718323856610,-985.25,0.00024109,2]
[329408778,1718323856659,-1185.87,0.00024109,2]
[329408779,1718323856676,-619.82,0.00024109,2]
[329408780,1718323856701,-911.89,0.00024109,2]
[329408781,1718323856723,-6026.07,0.00024109,2]
[329408782,1718323856737,-500.0,0.00024109,2]
[329408783,1718323856764,-875.72,0.00024109,2]
[329408784,1718323856784,-500.0,0.00024109,2]
[329408785,1718323856808,-544.93,0.00024109,2]
[329408786,1718323856879,-500.0,0.00024109,2]
[329408787,1718323856896,-500.0,0.00024109,2]
[329408788,1718323856910,-965.32,0.00024109,2]
[329408789,1718323856966,-500.0,0.00024109,2]
[329408790,1718323856985,-500.0,0.00024109,2]
[329408791,1718323857036,-2000.18,0.00024109,2]
[329408792,1718323857061,-500.0,0.00024109,2]
[329408793,1718323857091,-1203.39,0.00024109,2]
[329408794,1718323857103,-968.81,0.00024109,2]
[329408795,1718323857114,-500.0,0.00024109,2]
[329408796,1718323857125,-2115.38,0.00024109,2]
[329408797,1718323857137,-500.0,0.00024109,2]
[329408798,1718323857153,-1417.63,0.00024109,2]
[329408799,1718323857188,-500.0,0.00024109,2]
[329408800,1718323857199,-1806.44,0.00024109,2]
[329408801,1718323857253,-500.0,0.00024109,2]
[329408802,1718323857267,-970.12,0.00024109,2]
[329408803,1718323857278,-500.0,0.00024109,2]
[329408804,1718323857293,-843.65,0.00024109,2]
[329408805,1718323857336,-500.0,0.00024109,2]
[329408806,1718323857400,-976.76,0.00024109,2]
[329408807,1718323857431,-894.69,0.00024109,2]
[329408808,1718323857443,-500.0,0.00024109,2]
[329408809,1718323857473,-500.0,0.00024109,2]
[329408810,1718323857499,-500.0,0.00024109,2]
[329408811,1718323857510,-500.0,0.00024109,2]
[329408812,1718323857569,-500.0,0.00024109,2]
[329408813,1718323857603,-500.0,0.00024109,2]
[329408814,1718323857672,-500.0,0.00024109,2]
[329408815,1718323857696,-500.0,0.00024109,2]
[329408816,1718323857709,-500.0,0.00024109,2]
[329408817,1718323857720,-500.0,0.00024109,2]
[329408818,1718323857741,-500.0,0.00024109,2]
[329408819,1718323857760,-500.0,0.00024109,2]
[329408820,1718323857781,-2217.32,0.00024109,2]
[329408821,1718323857793,-793.61,0.00024109,2]
[329408822,1718323857824,-1694.71,0.00024109,2]
[329408823,1718323857842,-500.0,0.00024109,2]
[329408824,1718323857900,-1270.39,0.00024109,2]
[329408825,1718323857941,-3285.18,0.00024109,2]
[329408826,1718323857972,-2058.01,0.00024109,2]
[329408827,1718323858002,-1413.75,0.00024109,2]